[Event "*** Titled Tuesday Blitz"]
[Site "Chess.com"]
[Date "2021.03.02"]
[Round "2"]
[White "VladaSviridova"]
[Black "HajiyevKanan"]
[Result "1-0"]
[WhiteElo "2236"]
[BlackElo "2426"]
[TimeControl "180+1"]
[EndTime "10:19:02 PST"]
[Termination "VladaSviridova won by checkmate"]

1. d4 {[%clk 0:03:00.9]} 1... c6 {[%clk 0:02:59.7]} 2. c4 {[%clk 0:03:00.6]}
2... d5 {[%clk 0:03:00.6]} 3. Nf3 {[%clk 0:03:00.8]} 3... Nf6 {[%clk 0:02:59.5]}
4. Nc3 {[%clk 0:03:00.9]} 4... g6 {[%clk 0:02:59.6]} 5. e3 {[%clk 0:03:00.4]}
5... Bg7 {[%clk 0:02:59.6]} 6. Bd3 {[%clk 0:03:00.7]} 6... O-O {[%clk
0:03:00.2]} 7. O-O {[%clk 0:03:00.8]} 7... Bf5 {[%clk 0:03:00.5]} 8. Bxf5 {[%clk
0:03:00]} 8... gxf5 {[%clk 0:03:01.4]} 9. b3 {[%clk 0:02:46.6]} 9... e6 {[%clk
0:03:00.8]} 10. Bb2 {[%clk 0:02:35.3]} 10... Nbd7 {[%clk 0:02:59.9]} 11. Rc1
{[%clk 0:02:35]} 11... Re8 {[%clk 0:02:59.3]} 12. Ne2 {[%clk 0:02:17.6]} 12...
Ne4 {[%clk 0:02:58.1]} 13. Nf4 {[%clk 0:02:14.4]} 13... Kh8 {[%clk 0:02:57.5]}
14. Ne5 {[%clk 0:01:49.5]} 14... Nxe5 {[%clk 0:02:51.1]} 15. dxe5 {[%clk
0:01:49.6]} 15... h6 {[%clk 0:02:26.2]} 16. Nh5 {[%clk 0:01:34.4]} 16... Rg8
{[%clk 0:02:24]} 17. f3 {[%clk 0:01:19.9]} 17... Ng5 {[%clk 0:02:21.3]} 18. Kh1
{[%clk 0:01:13.2]} 18... Qc7 {[%clk 0:02:13.7]} 19. Nxg7 {[%clk 0:01:04.8]}
19... Kxg7 {[%clk 0:02:10.4]} 20. h4 {[%clk 0:01:02.8]} 20... Nh7 {[%clk
0:02:09.8]} 21. cxd5 {[%clk 0:01:02.9]} 21... exd5 {[%clk 0:02:03.9]} 22. Qxd5
{[%clk 0:00:49]} 22... Kg6 {[%clk 0:01:30.8]} 23. Qc4 {[%clk 0:00:41.7]} 23...
Nf8 {[%clk 0:01:29.4]} 24. Qf4 {[%clk 0:00:38.9]} 24... Ne6 {[%clk 0:01:28.2]}
25. h5+ {[%clk 0:00:38.7]} 25... Kh7 {[%clk 0:01:27.3]} 26. Qxf5+ {[%clk
0:00:38.6]} 26... Kh8 {[%clk 0:01:27.9]} 27. Qf6+ {[%clk 0:00:37.2]} 27... Kh7
{[%clk 0:01:28.1]} 28. f4 {[%clk 0:00:37.1]} 28... Rg3 {[%clk 0:01:19.1]} 29. f5
{[%clk 0:00:30.9]} 29... Ng5 {[%clk 0:01:16.1]} 30. e6 {[%clk 0:00:29.2]} 30...
Rg8 {[%clk 0:01:12]} 31. exf7 {[%clk 0:00:25.6]} 31... Qxf7 {[%clk 0:01:12]} 32.
Qxf7+ {[%clk 0:00:18.9]} 32... Nxf7 {[%clk 0:01:11.2]} 33. Rc2 {[%clk
0:00:18.2]} 33... R8g5 {[%clk 0:01:09.3]} 34. e4 {[%clk 0:00:17.1]} 34... Rxh5+
{[%clk 0:01:09.5]} 35. Kg1 {[%clk 0:00:17.6]} 35... Nd6 {[%clk 0:01:08.2]} 36.
Rf4 {[%clk 0:00:16.7]} 36... Re3 {[%clk 0:01:05.6]} 37. f6 {[%clk 0:00:13.3]}
37... Rxe4 {[%clk 0:01:00.6]} 38. Rxe4 {[%clk 0:00:12.4]} 38... Nxe4 {[%clk
0:01:01.5]} 39. f7 {[%clk 0:00:12.5]} 39... Rf5 {[%clk 0:01:01.6]} 40. Re2
{[%clk 0:00:12]} 40... Ng5 {[%clk 0:00:59.3]} 41. Re8 {[%clk 0:00:10.8]} 41...
Rxf7 {[%clk 0:00:59.1]} 42. Rh8+ {[%clk 0:00:10.1]} 42... Kg6 {[%clk 0:00:59.4]}
43. g4 {[%clk 0:00:09.7]} 43... Nf3+ {[%clk 0:00:51.3]} 44. Kg2 {[%clk
0:00:09.5]} 44... Ne1+ {[%clk 0:00:50.6]} 45. Kg3 {[%clk 0:00:08.3]} 45... Nd3
{[%clk 0:00:51.5]} 46. Rg8+ {[%clk 0:00:07.7]} 46... Kh7 {[%clk 0:00:51.7]} 47.
Bd4 {[%clk 0:00:07.8]} 47... Rd7 {[%clk 0:00:49.5]} 48. Rh8+ {[%clk 0:00:06.9]}
48... Kg6 {[%clk 0:00:50]} 49. Bc3 {[%clk 0:00:07]} 49... Kf7 {[%clk 0:00:48.8]}
50. Rh7+ {[%clk 0:00:05.7]} 50... Ke6 {[%clk 0:00:48.9]} 51. Rxh6+ {[%clk
0:00:06.1]} 51... Kd5 {[%clk 0:00:49.4]} 52. Rh5+ {[%clk 0:00:06]} 52... Ke4
{[%clk 0:00:48.6]} 53. Rh8 {[%clk 0:00:05.7]} 53... b5 {[%clk 0:00:47.4]} 54.
Re8+ {[%clk 0:00:05.3]} 54... Kd5 {[%clk 0:00:46.6]} 55. g5 {[%clk 0:00:05]}
55... b4 {[%clk 0:00:46.8]} 56. Ba1 {[%clk 0:00:04.6]} 56... c5 {[%clk 0:00:47]}
57. g6 {[%clk 0:00:04.7]} 57... Ne5 {[%clk 0:00:47.3]} 58. Rxe5+ {[%clk
0:00:04.4]} 58... Kd6 {[%clk 0:00:47.5]} 59. Rf5 {[%clk 0:00:04]} 59... Re7
{[%clk 0:00:46.5]} 60. Rf6+ {[%clk 0:00:04.2]} 60... Kd5 {[%clk 0:00:46.2]} 61.
Rf7 {[%clk 0:00:04.6]} 61... Re1 {[%clk 0:00:47.1]} 62. g7 {[%clk 0:00:04.1]}
62... Rxa1 {[%clk 0:00:46.5]} 63. Rd7+ {[%clk 0:00:02.6]} 63... Kc6 {[%clk
0:00:46]} 64. Kh2 {[%clk 0:00:01.8]} 64... Rxa2+ {[%clk 0:00:45.1]} 65. Kh3
{[%clk 0:00:02]} 65... Ra1 {[%clk 0:00:44.8]} 66. Kg2 {[%clk 0:00:01.7]} 66...
Ra2+ {[%clk 0:00:44.7]} 67. Kf3 {[%clk 0:00:01.8]} 67... Ra1 {[%clk 0:00:43.8]}
68. g8=Q {[%clk 0:00:02]} 68... Kxd7 {[%clk 0:00:42.9]} 69. Qg7+ {[%clk
0:00:02.6]} 69... Kc6 {[%clk 0:00:43.1]} 70. Qxa1 {[%clk 0:00:03.4]} 70... Kb5
{[%clk 0:00:43.3]} 71. Qa4+ {[%clk 0:00:03.6]} 71... Kb6 {[%clk 0:00:43.4]} 72.
Ke4 {[%clk 0:00:04.1]} 72... a6 {[%clk 0:00:43.4]} 73. Kd5 {[%clk 0:00:03.9]}
73... c4 {[%clk 0:00:43.9]} 74. bxc4 {[%clk 0:00:03.5]} 74... a5 {[%clk
0:00:44.6]} 75. Qb5+ {[%clk 0:00:03.6]} 75... Kc7 {[%clk 0:00:45.1]} 76. c5
{[%clk 0:00:03.9]} 76... a4 {[%clk 0:00:45.2]} 77. Qb6+ {[%clk 0:00:04]} 77...
Kc8 {[%clk 0:00:45.2]} 78. c6 {[%clk 0:00:04.1]} 78... b3 {[%clk 0:00:44.6]} 79.
Qb7+ {[%clk 0:00:04.7]} 79... Kd8 {[%clk 0:00:45.5]} 80. Qd7# {[%clk 0:00:05.3]}
1-0

[Event "*** Titled Tuesday Blitz"]
[Site "Chess.com"]
[Date "2021.03.02"]
[Round "2"]
[White "AlexPapasimakopoulos"]
[Black "LyonBeast"]
[Result "0-1"]
[WhiteElo "2599"]
[BlackElo "3112"]
[TimeControl "180+1"]
[EndTime "10:19:03 PST"]
[Termination "LyonBeast won by resignation"]

1. d4 {[%clk 0:03:00.9]} 1... f5 {[%clk 0:02:53.3]} 2. e4 {[%clk 0:02:55.4]}
2... fxe4 {[%clk 0:02:52]} 3. Nc3 {[%clk 0:02:56.1]} 3... Nf6 {[%clk 0:02:51.1]}
4. Bg5 {[%clk 0:02:56.5]} 4... Nc6 {[%clk 0:02:49.2]} 5. d5 {[%clk 0:02:57.1]}
5... Ne5 {[%clk 0:02:49.4]} 6. Qd4 {[%clk 0:02:57.7]} 6... Nf7 {[%clk
0:02:48.8]} 7. h4 {[%clk 0:02:58.4]} 7... c5 {[%clk 0:02:40.3]} 8. Qxc5 {[%clk
0:02:52]} 8... e5 {[%clk 0:02:38.4]} 9. Qe3 {[%clk 0:02:48.5]} 9... Bb4 {[%clk
0:02:38.1]} 10. Bxf6 {[%clk 0:02:40.6]} 10... Qxf6 {[%clk 0:02:35.3]} 11. Ne2
{[%clk 0:02:38.8]} 11... O-O {[%clk 0:02:27.3]} 12. a3 {[%clk 0:02:32.4]} 12...
Ba5 {[%clk 0:02:25.1]} 13. O-O-O {[%clk 0:02:31.8]} 13... Nd6 {[%clk 0:02:20.9]}
14. Nxe4 {[%clk 0:02:17.2]} 14... Nxe4 {[%clk 0:02:19.5]} 15. Qxe4 {[%clk
0:02:18.1]} 15... d6 {[%clk 0:02:12.6]} 16. Qa4 {[%clk 0:02:04.6]} 16... Bb6
{[%clk 0:02:10.4]} 17. f3 {[%clk 0:02:04.2]} 17... Bf5 {[%clk 0:02:06.9]} 18.
Nc3 {[%clk 0:02:04.2]} 18... Rac8 {[%clk 0:01:37.1]} 19. Bd3 {[%clk 0:02:04.2]}
19... Rxc3 {[%clk 0:01:28.1]} 20. bxc3 {[%clk 0:01:55]} 20... Bc8 {[%clk
0:01:29]} 21. Qe4 {[%clk 0:01:52]} 21... Qh6+ {[%clk 0:01:28.8]} 22. Kb2 {[%clk
0:01:50]} 22... Rf4 {[%clk 0:01:29.7]} 23. Qe2 {[%clk 0:01:38.8]} 23... Bc5
{[%clk 0:01:24.3]} 24. c4 {[%clk 0:01:32.5]} 24... Qf6 {[%clk 0:01:20.6]} 25.
Be4 {[%clk 0:01:32.1]} 25... Qd8 {[%clk 0:01:14.7]} 26. Qd3 {[%clk 0:01:29.5]}
26... h6 {[%clk 0:01:12.9]} 27. g4 {[%clk 0:01:15.8]} 27... Bd7 {[%clk
0:01:12.2]} 28. g5 {[%clk 0:01:13.9]} 28... h5 {[%clk 0:01:12.3]} 29. g6 {[%clk
0:01:10.6]} 29... Qa5 {[%clk 0:01:08.3]} 30. Ka2 {[%clk 0:01:08.5]} 30... Rf8
{[%clk 0:01:06.6]} 31. Rb1 {[%clk 0:01:05.4]} 31... Qa6 {[%clk 0:01:04]} 32. Rh2
{[%clk 0:00:57.1]} 32... Rf4 {[%clk 0:00:28.6]} 33. Rhh1 {[%clk 0:00:55.7]}
33... b6 {[%clk 0:00:28.6]} 34. Rh2 {[%clk 0:00:55.4]} 34... Qc8 {[%clk
0:00:28.7]} 35. Rhh1 {[%clk 0:00:49.6]} 35... Qd8 {[%clk 0:00:28.8]} 36. Rh2
{[%clk 0:00:49.4]} 36... Bd4 {[%clk 0:00:28.2]} 37. Qb3 {[%clk 0:00:45.5]} 37...
Kf8 {[%clk 0:00:25.1]} 38. Qb4 {[%clk 0:00:45.3]} 38... Bc5 {[%clk 0:00:25.6]}
39. Qe1 {[%clk 0:00:44.9]} 39... Qc8 {[%clk 0:00:22.9]} 40. Rb3 {[%clk
0:00:38.3]} 40... Ba4 {[%clk 0:00:19.1]} 41. Rb1 {[%clk 0:00:31.6]} 41... Ke8
{[%clk 0:00:16.7]} 42. Rg2 {[%clk 0:00:28.2]} 42... Qh3 {[%clk 0:00:15]} 43. Qg3
{[%clk 0:00:26.7]} 43... Qxh4 {[%clk 0:00:13.8]} 44. Qg5 {[%clk 0:00:24.2]}
44... Qxg5 {[%clk 0:00:13.4]} 45. Rxg5 {[%clk 0:00:25.1]} 45... Rh4 {[%clk
0:00:13.1]} 46. Rf5 {[%clk 0:00:23.3]} 46... Rh2 {[%clk 0:00:12]} 47. Rc1 {[%clk
0:00:22.8]} 47... Be3 {[%clk 0:00:11.5]} 48. Re1 {[%clk 0:00:22.9]} 48... Bh6
{[%clk 0:00:11.9]} 49. Kb1 {[%clk 0:00:21.9]} 49... Bd7 {[%clk 0:00:11.5]} 50.
Rf7 {[%clk 0:00:21.4]} 50... h4 {[%clk 0:00:11.8]} 51. Bf5 {[%clk 0:00:20.5]}
51... Bxf5 {[%clk 0:00:11.7]} 52. Rxf5 {[%clk 0:00:21.4]} 52... h3 {[%clk
0:00:11.9]} 53. Rh5 {[%clk 0:00:21.5]} 53... Ke7 {[%clk 0:00:11.7]} 54. Rh4
{[%clk 0:00:20.9]} 54... Kf6 {[%clk 0:00:12.1]} 55. Rg1 {[%clk 0:00:20.2]} 55...
Bf4 {[%clk 0:00:12.4]} 56. Rh7 {[%clk 0:00:19.1]} 56... Rg2 {[%clk 0:00:11.6]}
57. Rh1 {[%clk 0:00:17.2]} 57... h2 {[%clk 0:00:12.2]} 58. Kb2 {[%clk
0:00:17.9]} 58... Kxg6 {[%clk 0:00:12.8]} 59. Rh8 {[%clk 0:00:17.7]} 59... Kf7
{[%clk 0:00:13.2]} 60. Rh7 {[%clk 0:00:16.9]} 60... Kf6 {[%clk 0:00:13.3]} 61.
Rh3 {[%clk 0:00:17.4]} 61... g5 {[%clk 0:00:13.6]} 62. Kb3 {[%clk 0:00:17.9]}
62... Kf5 {[%clk 0:00:14.1]} 63. c3 {[%clk 0:00:18]} 63... e4 {[%clk 0:00:14.7]}
64. fxe4+ {[%clk 0:00:18.2]} 64... Kxe4 {[%clk 0:00:15.6]} 65. Rh8 {[%clk
0:00:18.3]} 65... g4 {[%clk 0:00:15.9]} 66. c5 {[%clk 0:00:18.8]} 66... bxc5
{[%clk 0:00:15.9]} 67. Kc4 {[%clk 0:00:19.4]} 67... g3 {[%clk 0:00:16.5]} 68.
Rh7 {[%clk 0:00:18.5]} 68... Re2 {[%clk 0:00:16.1]} 69. Re7+ {[%clk 0:00:18.2]}
69... Kf3 {[%clk 0:00:16.6]} 70. Rf1+ {[%clk 0:00:17.8]} 70... Rf2 {[%clk
0:00:16.7]} 71. Rh1 {[%clk 0:00:16.6]} 71... g2 {[%clk 0:00:16.8]} 0-1

[Event "*** Titled Tuesday Blitz"]
[Site "Chess.com"]
[Date "2021.03.02"]
[Round "2"]
[White "chessablanca"]
[Black "GigaQuparadze"]
[Result "1-0"]
[WhiteElo "2602"]
[BlackElo "2960"]
[TimeControl "180+1"]
[EndTime "10:19:03 PST"]
[Termination "chessablanca won by resignation"]

1. Nf3 {[%clk 0:03:00.9]} 1... c5 {[%clk 0:02:59.8]} 2. c4 {[%clk 0:03:00.6]}
2... g6 {[%clk 0:02:58.1]} 3. e3 {[%clk 0:02:58.5]} 3... Nf6 {[%clk 0:02:57.5]}
4. d4 {[%clk 0:02:58.7]} 4... cxd4 {[%clk 0:02:58.4]} 5. exd4 {[%clk 0:02:59]}
5... d5 {[%clk 0:02:58.6]} 6. Nc3 {[%clk 0:02:58.4]} 6... Bg7 {[%clk 0:02:58.7]}
7. Bf4 {[%clk 0:02:56.9]} 7... O-O {[%clk 0:02:56.6]} 8. Be2 {[%clk 0:02:56.5]}
8... dxc4 {[%clk 0:02:56]} 9. Bxc4 {[%clk 0:02:56.2]} 9... Nc6 {[%clk
0:02:56.2]} 10. O-O {[%clk 0:02:47.3]} 10... Bg4 {[%clk 0:02:54.7]} 11. d5
{[%clk 0:02:47.5]} 11... Na5 {[%clk 0:02:54.5]} 12. Be2 {[%clk 0:02:47.5]} 12...
Rc8 {[%clk 0:02:53.7]} 13. Rc1 {[%clk 0:02:44.7]} 13... Nc4 {[%clk 0:02:52.5]}
14. Qa4 {[%clk 0:02:34.8]} 14... Nb6 {[%clk 0:02:27.6]} 15. Qxa7 {[%clk
0:02:29]} 15... Nbxd5 {[%clk 0:02:27]} 16. Be5 {[%clk 0:02:10.8]} 16... Nxc3
{[%clk 0:02:16.7]} 17. Bxc3 {[%clk 0:02:07.9]} 17... Qd5 {[%clk 0:02:10.4]} 18.
Rfd1 {[%clk 0:02:03.4]} 18... Qe4 {[%clk 0:02:10.3]} 19. Bd3 {[%clk 0:01:58]}
19... Qe6 {[%clk 0:02:02.8]} 20. Nd4 {[%clk 0:01:49.4]} 20... Qd5 {[%clk
0:01:55.4]} 21. f3 {[%clk 0:01:43.1]} 21... Ra8 {[%clk 0:01:54]} 22. Qb6 {[%clk
0:01:40.5]} 22... Bd7 {[%clk 0:01:38.1]} 23. a3 {[%clk 0:01:37.3]} 23... Ba4
{[%clk 0:01:36.6]} 24. b3 {[%clk 0:01:31.3]} 24... Nd7 {[%clk 0:01:25.9]} 25.
Qb4 {[%clk 0:01:26.3]} 25... Bxd4+ {[%clk 0:01:20.5]} 26. Bxd4 {[%clk
0:01:15.9]} 26... Qxb3 {[%clk 0:01:20.1]} 27. Qxe7 {[%clk 0:01:05.7]} 27... Rfe8
{[%clk 0:00:57.4]} 28. Qh4 {[%clk 0:00:59.3]} 28... Qxa3 {[%clk 0:00:56.1]} 29.
Ra1 {[%clk 0:00:45.3]} 29... Qe7 {[%clk 0:00:55.5]} 30. Qxe7 {[%clk 0:00:41.1]}
30... Rxe7 {[%clk 0:00:56.4]} 31. Bb5 {[%clk 0:00:34.1]} 31... Nc5 {[%clk
0:00:32.5]} 32. Bxc5 {[%clk 0:00:28.9]} 32... Re5 {[%clk 0:00:32.6]} 33. Bxa4
{[%clk 0:00:22.4]} 33... Rxc5 {[%clk 0:00:32]} 34. Bb3 {[%clk 0:00:22.9]} 34...
Rxa1 {[%clk 0:00:31.5]} 35. Rxa1 {[%clk 0:00:22.8]} 35... Rb5 {[%clk 0:00:31.9]}
36. Bc4 {[%clk 0:00:23]} 36... Rb4 {[%clk 0:00:31.9]} 37. Rc1 {[%clk 0:00:22.9]}
37... Kf8 {[%clk 0:00:31.7]} 38. Bd5 {[%clk 0:00:23.1]} 38... Rb5 {[%clk
0:00:31.8]} 39. Be4 {[%clk 0:00:23.2]} 39... h5 {[%clk 0:00:30.6]} 40. Kf2
{[%clk 0:00:23.1]} 40... b6 {[%clk 0:00:30.2]} 41. Rc2 {[%clk 0:00:22.9]} 41...
Rb4 {[%clk 0:00:25.5]} 42. Ke3 {[%clk 0:00:22.8]} 42... Rb3+ {[%clk 0:00:25.5]}
43. Kf4 {[%clk 0:00:22.6]} 43... Rb5 {[%clk 0:00:24.4]} 44. g4 {[%clk
0:00:20.9]} 44... g5+ {[%clk 0:00:24.3]} 45. Ke3 {[%clk 0:00:20.3]} 45... hxg4
{[%clk 0:00:23.5]} 46. fxg4 {[%clk 0:00:21.2]} 46... Rb3+ {[%clk 0:00:23.8]} 47.
Bd3 {[%clk 0:00:21.4]} 47... Rb4 {[%clk 0:00:23.2]} 48. Be4 {[%clk 0:00:21.2]}
48... Rb3+ {[%clk 0:00:23.3]} 49. Kd4 {[%clk 0:00:21.9]} 49... Ke7 {[%clk
0:00:21.8]} 50. Rc7+ {[%clk 0:00:21.1]} 50... Kd6 {[%clk 0:00:22.2]} 51. Rxf7
{[%clk 0:00:21.1]} 51... Rb4+ {[%clk 0:00:22.5]} 52. Ke3 {[%clk 0:00:21.5]}
52... Rb3+ {[%clk 0:00:22.9]} 53. Bd3 {[%clk 0:00:21.4]} 53... Rb4 {[%clk
0:00:23.3]} 54. h3 {[%clk 0:00:20.2]} 54... Rb2 {[%clk 0:00:21.6]} 55. Rf5
{[%clk 0:00:20.3]} 55... Rh2 {[%clk 0:00:21.5]} 56. Rxg5 {[%clk 0:00:20.7]}
56... Rxh3+ {[%clk 0:00:21.4]} 57. Kd4 {[%clk 0:00:21.4]} 57... Rg3 {[%clk
0:00:20.9]} 58. Rg6+ {[%clk 0:00:21.7]} 58... Ke7 {[%clk 0:00:21.3]} 59. Be4
{[%clk 0:00:21.9]} 59... b5 {[%clk 0:00:21]} 60. Ke5 {[%clk 0:00:20.6]} 60... b4
{[%clk 0:00:21.4]} 61. Bf5 {[%clk 0:00:19]} 61... Re3+ {[%clk 0:00:20.7]} 62.
Kf4 {[%clk 0:00:18.9]} 62... Rc3 {[%clk 0:00:21.2]} 63. Rb6 {[%clk 0:00:18.9]}
63... b3 {[%clk 0:00:21.2]} 64. Kg5 {[%clk 0:00:19.1]} 64... Re3 {[%clk
0:00:20.5]} 65. Kg6 {[%clk 0:00:18.5]} 65... Kd8 {[%clk 0:00:20.7]} 66. g5
{[%clk 0:00:18.3]} 66... Kc7 {[%clk 0:00:21]} 67. Rb4 {[%clk 0:00:18.5]} 67...
Kd6 {[%clk 0:00:21.2]} 68. Kf6 {[%clk 0:00:15.6]} 68... Kc5 {[%clk 0:00:21.5]}
69. Rb8 {[%clk 0:00:15.4]} 69... Kc4 {[%clk 0:00:21.9]} 70. g6 {[%clk
0:00:15.7]} 70... Kc3 {[%clk 0:00:21.8]} 71. g7 {[%clk 0:00:15.9]} 71... Rg3
{[%clk 0:00:20.8]} 72. g8=Q {[%clk 0:00:15.8]} 72... Rxg8 {[%clk 0:00:21.4]} 73.
Rxg8 {[%clk 0:00:16.5]} 1-0

[Event "*** Titled Tuesday Blitz"]
[Site "Chess.com"]
[Date "2021.03.02"]
[Round "2"]
[White "Forantes"]
[Black "dodorox"]
[Result "1-0"]
[WhiteElo "2415"]
[BlackElo "2164"]
[TimeControl "180+1"]
[EndTime "10:19:05 PST"]
[Termination "Forantes won on time"]

1. Nf3 {[%clk 0:03:00.9]} 1... e6 {[%clk 0:02:59.4]} 2. g3 {[%clk 0:02:59.9]}
2... d5 {[%clk 0:02:59.3]} 3. Bg2 {[%clk 0:02:59.6]} 3... Nf6 {[%clk 0:02:59.7]}
4. O-O {[%clk 0:02:59.4]} 4... c5 {[%clk 0:02:55.5]} 5. d4 {[%clk 0:02:58.3]}
5... Nc6 {[%clk 0:02:54.3]} 6. c4 {[%clk 0:02:57.1]} 6... dxc4 {[%clk
0:02:54.4]} 7. Qa4 {[%clk 0:02:47.2]} 7... Bd7 {[%clk 0:02:48.4]} 8. Qxc4 {[%clk
0:02:38.6]} 8... b5 {[%clk 0:02:46.1]} 9. Qd3 {[%clk 0:02:04.1]} 9... c4 {[%clk
0:02:21.4]} 10. Qd1 {[%clk 0:01:58.2]} 10... Rc8 {[%clk 0:02:18.9]} 11. a3
{[%clk 0:01:53.6]} 11... Be7 {[%clk 0:02:12.7]} 12. Nc3 {[%clk 0:01:52.4]} 12...
a6 {[%clk 0:02:08.4]} 13. e4 {[%clk 0:01:33.3]} 13... Na5 {[%clk 0:01:55.7]} 14.
Bf4 {[%clk 0:01:23.4]} 14... Nb3 {[%clk 0:01:46.4]} 15. Rb1 {[%clk 0:01:22.5]}
15... Bc6 {[%clk 0:01:36.2]} 16. Ne5 {[%clk 0:00:50.8]} 16... Nxd4 {[%clk
0:01:11.1]} 17. Be3 {[%clk 0:00:38.4]} 17... Nb3 {[%clk 0:00:26.8]} 18. Nxc6
{[%clk 0:00:35]} 18... Qxd1 {[%clk 0:00:19.7]} 19. Rbxd1 {[%clk 0:00:32.1]}
19... Rxc6 {[%clk 0:00:19.3]} 20. e5 {[%clk 0:00:32.3]} 20... Nd5 {[%clk
0:00:19.5]} 21. Nxd5 {[%clk 0:00:32]} 21... exd5 {[%clk 0:00:19.5]} 22. Bxd5
{[%clk 0:00:32.9]} 22... Rc7 {[%clk 0:00:10.6]} 23. Bb6 {[%clk 0:00:32.3]} 23...
Rc8 {[%clk 0:00:10.6]} 24. e6 {[%clk 0:00:21.4]} 24... O-O {[%clk 0:00:08.1]}
25. exf7+ {[%clk 0:00:20.8]} 25... Kh8 {[%clk 0:00:08.6]} 26. Rfe1 {[%clk
0:00:19.2]} 26... Bc5 {[%clk 0:00:08.3]} 27. Bxc5 {[%clk 0:00:19.2]} 27... Nxc5
{[%clk 0:00:08.8]} 28. Re7 {[%clk 0:00:16.7]} 28... Nd3 {[%clk 0:00:05.1]} 29.
Rd2 {[%clk 0:00:07.9]} 29... Rcd8 {[%clk 0:00:04.6]} 30. Bc6 {[%clk 0:00:07.6]}
30... g6 {[%clk 0:00:03.8]} 31. Re8 {[%clk 0:00:07.4]} 31... Kg7 {[%clk
0:00:03.5]} 32. Rxf8 {[%clk 0:00:07.9]} 32... Rxf8 {[%clk 0:00:03.2]} 33. Be8
{[%clk 0:00:08.4]} 33... Ne5 {[%clk 0:00:01.9]} 34. Rd6 {[%clk 0:00:06.3]} 34...
Nxf7 {[%clk 0:00:01.7]} 35. Bxf7 {[%clk 0:00:06.9]} 35... Rxf7 {[%clk
0:00:02.5]} 36. Rxa6 {[%clk 0:00:07.8]} 36... Rb7 {[%clk 0:00:02.7]} 37. Rc6
{[%clk 0:00:07.1]} 37... h6 {[%clk 0:00:03.1]} 38. f4 {[%clk 0:00:07.4]} 38...
b4 {[%clk 0:00:02.4]} 39. Rxc4 {[%clk 0:00:06.7]} 39... bxa3 {[%clk 0:00:02.3]}
40. bxa3 {[%clk 0:00:07.6]} 40... Ra7 {[%clk 0:00:02.7]} 41. a4 {[%clk
0:00:07.8]} 41... Kf6 {[%clk 0:00:02.7]} 42. Kf2 {[%clk 0:00:08.4]} 42... Kf7
{[%clk 0:00:02.8]} 43. Kf3 {[%clk 0:00:09]} 43... Rb7 {[%clk 0:00:03.4]} 44. Ke4
{[%clk 0:00:09.6]} 44... Kf6 {[%clk 0:00:04]} 45. Rc6+ {[%clk 0:00:09.9]} 45...
Kf7 {[%clk 0:00:03.9]} 46. a5 {[%clk 0:00:10.8]} 46... Ra7 {[%clk 0:00:04]} 47.
a6 {[%clk 0:00:10.8]} 47... Kg7 {[%clk 0:00:04.4]} 48. Rb6 {[%clk 0:00:11.2]}
48... Kf8 {[%clk 0:00:04.7]} 49. Rb7 {[%clk 0:00:11.7]} 49... Rxa6 {[%clk
0:00:04.4]} 50. Ke5 {[%clk 0:00:12.4]} 50... Ra5+ {[%clk 0:00:03.7]} 51. Kf6
{[%clk 0:00:09.3]} 51... Ra6+ {[%clk 0:00:04.2]} 52. Ke5 {[%clk 0:00:10]} 52...
Kg8 {[%clk 0:00:04.5]} 53. Rd7 {[%clk 0:00:09.7]} 53... Ra5+ {[%clk 0:00:04.7]}
54. Ke6 {[%clk 0:00:09.2]} 54... Ra6+ {[%clk 0:00:04.8]} 55. Rd6 {[%clk
0:00:09.7]} 55... Ra7 {[%clk 0:00:04.4]} 56. Kf6 {[%clk 0:00:10.3]} 56... Kh7
{[%clk 0:00:04.8]} 57. Re6 {[%clk 0:00:10.1]} 57... Ra2 {[%clk 0:00:04.1]} 58.
Re7+ {[%clk 0:00:10.2]} 58... Kg8 {[%clk 0:00:04.6]} 59. Kxg6 {[%clk 0:00:10.7]}
59... Kf8 {[%clk 0:00:05.1]} 60. Rf7+ {[%clk 0:00:10.8]} 60... Kg8 {[%clk
0:00:04.9]} 61. Rc7 {[%clk 0:00:05.6]} 61... Kf8 {[%clk 0:00:03.6]} 62. f5
{[%clk 0:00:05.4]} 62... Rxh2 {[%clk 0:00:03.1]} 63. f6 {[%clk 0:00:06]} 1-0